bitfinex-derivatives/quotes_SOLF0:USTF0_20251224
["timestamp","ask_amount","ask_price","bid_price","bid_amount"]
[1766575019734,3.33,122.01,121.95,7.3841]
[1766575019924,3.33,122.01,121.91,114.9064]
[1766575020435,3.33,121.99,121.9,96.52]
[1766575020734,0.06060201,121.96,121.9,96.52]
[1766575021731,0.06060201,121.96,121.92,7.3862]
[1766575022125,9.35830208,122.0,121.91,114.9067]
[1766575022126,96.78,122.0,121.91,114.9067]
[1766575022327,96.78,122.0,121.94,7.3848]
[1766575023119,0.05769643,121.98,121.96,0.06060201]
[1766575053349,3.27769643,121.98,121.96,0.00060201]
[1766575054750,0.05769643,121.98,121.96,0.00060201]
[1766575059662,1.26499872,122.0,121.96,0.00060201]
[1766575059859,4.56499872,122.0,121.96,0.00060201]
[1766575060158,4.56499872,122.0,121.93,7.3851]
[1766575060159,3.3,121.99,121.93,7.3851]
[1766575060954,0.05279037,121.97,121.95,0.05769643]
[1766575082976,3.49279037,121.97,121.93,7.3856]
[1766575083377,0.05279037,121.97,121.94,7.385]
[1766575083872,0.05279037,121.97,121.94,7.455]
[1766575084078,3.44,121.99,121.95,0.07]
[1766575085075,0.05589453,121.98,121.96,0.05279037]
[1766575085576,98.06499872,122.0,121.96,0.12279037]
[1766575085577,1.26499872,122.0,121.96,0.12279037]
[1766575086076,4.70499872,122.0,121.96,0.12279037]
[1766575086476,0.05396221,121.99,121.96,0.12279037]
[1766575088676,0.05396221,121.99,121.96,0.05279037]
[1766575126223,3.13396221,121.99,121.96,0.05279037]
[1766575126412,3.13396221,121.99,121.92,7.3859]
[1766575127216,3.13396221,121.99,121.93,7.3855]
[1766575127418,0.05364729,121.97,121.95,0.05589453]
[1766575128725,0.05364729,121.97,121.95,7.44019453]
[1766575129323,0.00364729,121.97,121.95,7.44019453]
[1766575129635,3.08,122.02,121.95,1.69589453]
[1766575129923,3.08,122.02,121.95,0.05589453]
[1766575130431,0.05916649,122.0,121.95,0.05589453]
[1766575130632,0.05916649,122.0,121.97,7.3832]
[1766575142535,0.05916649,122.0,121.96,7.3838]
[1766575144032,3.36916649,122.0,121.95,0.05589453]
[1766575145633,10.75056649,122.0,121.95,0.05589453]
[1766575146135,3.31,121.99,121.95,0.05589453]
[1766575151137,0.05916649,122.0,121.95,0.05589453]
[1766575151334,3.31,122.02,121.95,114.92309453]
[1766575151638,3.31,122.04,121.95,114.92309453]
[1766575151828,3.31,122.04,121.96,114.8572]
[1766575152442,0.06162446,122.01,121.99,0.06001869]
[1766575153639,0.06162446,122.01,121.99,7.44201869]
[1766575154644,3.31,122.06,122.01,7.3806]
[1766575155644,0.05954685,122.05,122.02,0.05511688]
[1766575155839,3.36954685,122.05,122.02,0.05511688]
[1766575160051,3.36954685,122.05,121.99,7.3815]
[1766575160349,3.31,122.05,121.99,7.3815]
[1766575160946,3.31,122.05,122.0,7.3813]
[1766575161149,0.05499934,122.03,122.01,0.05670969]
[1766575162545,3.31,122.05,122.01,7.43720969]
[1766575163146,3.31,122.07,122.02,7.3801]
[1766575163351,3.31,122.09,122.01,114.86590969]
[1766575163550,3.31,122.09,122.01,114.8092]
[1766575163745,0.05626159,122.06,122.04,0.05356005]
[1766575165350,3.31,122.09,122.04,0.05356005]
[1766575165551,3.31,122.09,122.04,7.43246005]
[1766575166546,0.05896015,122.08,122.05,7.3783]
[1766575169860,0.05896015,122.08,122.04,0.05356005]
[1766575171161,0.05896015,122.08,122.05,7.3783]
[1766575171358,4.57326449,122.11,122.05,7.3783]
[1766575171660,3.32,122.1,122.05,7.3783]
[1766575172364,0.06216305,122.09,122.06,0.06270543]
[1766575174167,4.64542754,122.09,122.06,0.06270543]
[1766575174464,4.64542754,122.09,122.03,7.379]
[1766575175363,4.64542754,122.09,122.05,0.05333978]
[1766575180575,3.38216305,122.09,122.05,0.05333978]
[1766575182464,3.38216305,122.09,122.05,0.00333978]
[1766575183475,100.12,122.08,122.05,0.00333978]
[1766575185371,3.4,122.07,122.05,0.00333978]
[1766575187080,3.4,122.07,122.01,7.3802]
[1766575187968,0.05660952,122.05,122.03,0.05687357]
[1766575199581,0.05660952,122.05,122.03,7.43647357]
[1766575199792,3.4,122.06,122.03,7.43647357]
[1766575200802,3.46037154,122.06,122.03,7.43647357]
[1766575204708,0.06037154,122.06,122.03,7.43647357]
[1766575204906,0.06037154,122.06,122.04,7.3789]
[1766575205204,4.78326449,122.08,122.04,7.3789]
[1766575206007,0.05207888,122.07,122.04,7.3789]
[1766575206909,3.57207888,122.07,122.03,0.05687357]
[1766575207608,3.57207888,122.07,122.03,7.43647357]
[1766575213914,3.57207888,122.07,122.03,0.05687357]
[1766575214217,1.26326449,122.05,122.0,7.4409]
[1766575214416,3.52,122.06,122.0,7.4409]
[1766575215317,0.05261088,122.04,122.02,0.05314738]
[1766575220922,3.52,122.06,122.02,0.11314738]
[1766575221622,98.00326449,122.07,122.02,0.11314738]
[1766575221623,100.26,122.07,122.02,0.11314738]
[1766575221824,0.05543952,122.06,122.02,0.11314738]
[1766575224123,0.05543952,122.06,122.02,7.49304738]
[1766575230933,0.05543952,122.06,122.03,7.4395]
[1766575234631,96.74,122.09,122.03,7.4395]
[1766575235532,0.05786729,122.07,122.03,7.4395]
[1766575235835,0.05786729,122.07,122.05,0.06273085]
[1766575240739,0.05786729,122.07,122.03,0.06]
[1766575241537,0.05786729,122.07,122.04,0.06128046]
[1766575255847,3.48786729,122.07,122.04,0.06128046]
[1766575257743,0.05786729,122.07,122.04,3.48128046]
[1766575260546,0.05786729,122.07,122.04,0.06128046]
[1766575279065,0.05786729,122.07,122.04,11.01018046]
[1766575279266,3.37,122.09,122.04,11.01018046]
[1766575280172,0.05747011,122.08,122.04,11.01018046]
[1766575280569,1.97460711,122.12,122.06,3.57]
[1766575280968,98.71460711,122.14,122.06,3.57]
[1766575281367,237.00561087,122.18,122.08,10.9464]
[1766575281571,0.05667899,122.14,122.12,0.05306733]
[1766575283271,0.05667899,122.14,122.09,3.57]
[1766575284276,0.05667899,122.14,122.1,0.05768158]
[1766575284777,3.37,122.13,122.1,0.05768158]
[1766575284980,3.37,122.13,122.07,3.57]
[1766575285880,0.06023306,122.11,122.09,0.05440122]
[1766575293277,4.76256379,122.14,122.09,3.38440122]
[1766575293586,4.76256379,122.14,122.09,3.33]
[1766575294292,0.05273336,122.13,122.1,0.05841412]
[1766575298191,0.05273336,122.13,122.1,7.43371412]
[1766575299789,1.26256379,122.15,122.1,10.76371412]
[1766575300091,3.5,122.16,122.11,3.33]
[1766575300286,1.26256379,122.17,122.11,3.33]
[1766575300881,0.0570015,122.15,122.13,0.05570601]
[1766575301296,1.26256379,122.17,122.13,0.05570601]
[1766575301983,4.65256379,122.17,122.13,0.05570601]
[1766575302184,0.05191168,122.16,122.13,0.05570601]
[1766575306492,0.05191168,122.16,122.13,7.42920601]
[1766575307792,0.05191168,122.16,122.13,10.90920601]
[1766575309589,100.09,122.18,122.13,10.90920601]
[1766575309792,3.39,122.18,122.13,10.90920601]
[1766575310288,97.94256379,122.19,122.13,0.05570601]
[1766575310289,3.39,122.16,122.13,0.05570601]
[1766575310687,3.44955216,122.16,122.13,0.05570601]
[1766575315197,0.05955216,122.16,122.13,3.53570601]
[1766575316600,0.05955216,122.16,122.13,10.90920601]
[1766575317193,0.05955216,122.16,122.13,7.42920601]
[1766575320691,3.44955216,122.16,122.13,0.05570601]
[1766575320892,3.39,122.14,122.1,3.48]
[1766575321793,0.06090084,122.13,122.11,0.05578261]
[1766575324999,3.43090084,122.13,122.08,10.8163]
[1766575325796,0.06090084,122.13,122.09,10.8157]
[1766575325997,0.06090084,122.13,122.1,0.0527601]
[1766575326501,0.06090084,122.13,122.1,3.4927601]
[1766575331304,0.06090084,122.13,122.1,0.0527601]
[1766575354811,3.60090084,122.13,122.1,0.0027601]
[1766575355013,3.54,122.12,122.05,3.35]
[1766575355918,3.37755222,122.1,122.07,0.05192117]
[1766575361024,3.32,122.09,122.03,3.33]
[1766575361724,3.32,122.08,122.03,3.33]
[1766575362224,0.05456224,122.07,122.04,0.06046121]
[1766575362822,3.37456224,122.07,122.04,0.06046121]
[1766575363032,3.37456224,122.07,122.0,7.3809]
[1766575363325,3.32,122.06,121.99,3.33]
[1766575363525,3.32,122.06,121.99,10.7119]
[1766575364319,0.06062075,122.04,122.01,0.06270538]
[1766575369423,3.38062075,122.04,121.99,3.33]
[1766575370422,3.38062075,122.04,122.0,0.05683489]
[1766575371726,3.38062075,122.04,121.95,10.7143]
[1766575371923,3.32,122.02,121.96,3.33]
[1766575372731,0.05736151,122.0,121.98,0.05793986]
[1766575380940,3.32,122.03,121.98,3.38793986]
[1766575381246,3.32,122.03,121.98,3.33]
[1766575381635,3.24,122.05,121.98,3.33]
[1766575381840,0.06213205,122.03,122.0,0.06284729]
[1766575382249,3.30213205,122.03,121.91,98.51231126]
[1766575382547,3.24,122.03,121.94,3.31]
[1766575383547,0.06076057,122.0,121.97,0.05272265]
[1766575387459,0.06076057,122.0,121.97,3.36272265]
[1766575390456,3.24,122.02,121.97,3.36272265]
[1766575391455,0.05943872,122.01,121.97,3.36272265]
[1766575393552,10.6184,122.05,121.98,3.31]
[1766575393750,107.3984,122.05,121.98,3.31]
[1766575394145,3.24,122.04,121.98,3.31]
[1766575394553,0.05791972,122.02,122.0,0.06116621]
[1766575397656,3.29791972,122.02,122.0,0.00116621]
[1766575402061,3.29791972,122.02,121.97,10.6927]
[1766575402464,3.29791972,122.02,121.95,10.6939]
[1766575402762,3.24,122.02,121.96,3.31]
[1766575403167,0.05462837,122.0,121.98,0.06018672]
[1766575407763,0.00462837,122.0,121.98,3.37018672]
[1766575412969,0.00462837,122.0,121.99,3.6]
[1766575422888,0.00462837,122.0,121.99,10.982]
[1766575423386,3.4,122.06,122.0,3.5]
[1766575424490,0.05203334,122.04,122.02,0.05430108]
[1766575434107,3.45203334,122.04,121.98,3.5]
[1766575434399,4.71652127,122.04,121.98,3.5]
[1766575435011,4.71652127,122.04,122.0,0.06177023]
[1766575435300,0.05702985,122.03,122.0,0.06177023]
[1766575442911,0.05702985,122.03,122.0,7.44317023]
[1766575443803,0.05702985,122.03,121.97,3.46]
[1766575443804,4.67151778,122.03,121.97,3.46]
[1766575443999,3.35,122.02,121.97,3.46]
[1766575445096,0.0543346,122.01,121.98,0.05655154]
[1766575447189,3.4043346,122.01,121.98,7.43915154]
[1766575447394,4.66882253,122.01,121.95,3.46]
[1766575448508,4.66882253,122.01,121.97,0.05403931]
[1766575448711,0.0591857,122.0,121.97,0.05403931]
[1766575448906,0.0591857,122.0,121.97,3.51403931]
[1766575449306,0.0591857,122.0,121.97,10.89703931]
[1766575451298,0.0591857,122.0,121.98,7.3822]
[1766575451498,3.35,122.02,121.97,3.51403931]
[1766575452496,0.05272227,122.01,121.97,3.51403931]
[1766575452694,0.05272227,122.01,121.99,7.382]
[1766575453504,3.35,122.02,121.99,7.382]
[1766575453811,1.26448793,122.04,122.0,7.3814]
[1766575454310,1.26448793,122.04,121.98,3.46]
[1766575454710,0.06060902,122.02,122.0,0.05282957]
[1766575460320,0.06060902,122.02,121.98,3.46]
[1766575461520,0.06060902,122.02,121.99,0.06066395]
[1766575471345,0.06060902,122.02,121.99,3.35066395]
[1766575479149,3.26,122.06,122.0,3.56]
[1766575480244,0.05290263,122.04,122.02,0.05609815]
[1766575483046,3.31290263,122.04,121.99,3.56]
[1766575483353,3.26,122.04,121.99,3.56]
[1766575484148,0.06217443,122.03,122.0,0.05726634]
[1766575490755,3.32217443,122.03,122.0,0.05726634]
[1766575490959,3.32217443,122.03,121.97,3.56]
[1766575491962,3.32217443,122.03,121.99,0.05500768]
[1766575519785,3.32217443,122.03,121.99,10.88680768]
[1766575520085,3.49,122.07,121.99,3.50500768]
[1766575520283,3.49,122.07,121.99,3.45]
[1766575520977,0.06145515,122.04,122.02,0.05560945]
[1766575521183,3.49,122.07,122.02,10.88580945]
[1766575522187,0.05710843,122.06,122.02,10.88580945]
[1766575528404,0.05710843,122.06,122.03,7.3796]
[1766575532913,0.05710843,122.06,122.02,3.50560945]
[1766575537015,3.1,122.05,122.02,0.05560945]
[1766575538218,0.05710843,122.06,122.02,3.12560945]
[1766575539427,0.05710843,122.06,122.02,10.50570945]
[1766575543324,0.05710843,122.06,122.03,7.3795]
[1766575545422,3.15710843,122.06,122.02,3.12560945]
[1766575546619,3.15710843,122.06,122.02,10.50580945]
[1766575549419,3.15710843,122.06,122.02,3.12560945]
[1766575555122,0.05710843,122.06,122.02,3.12560945]
[1766575555624,4.4209021,122.06,122.02,0.05560945]
[1766575564633,3.49,122.05,122.02,0.05560945]
[1766575569134,1.26379367,122.04,121.98,10.8021]
[1766575569331,3.49,122.03,121.96,3.42]
[1766575570033,3.49,122.03,121.98,0.0573303]
[1766575570240,0.06295373,122.01,121.98,0.0573303]
[1766575574838,3.49,122.03,121.99,3.42]
[1766575575040,4.75379367,122.03,121.98,0.0573303]
[1766575575234,3.49,122.02,121.98,0.0573303]
[1766575575942,0.05992908,122.01,121.98,0.0573303]
[1766575577839,0.05992908,122.01,121.98,3.4773303]
[1766575592158,3.58992908,122.01,121.98,0.0573303]
[1766575601464,3.58992908,122.01,121.96,3.5]
[1766575602260,3.58992908,122.01,121.92,96.6]
[1766575602261,3.58992908,122.01,121.94,3.28]
[1766575602565,3.44268698,121.99,121.96,0.05650125]
[1766575610866,3.38,121.97,121.92,3.28]
[1766575611865,0.05316999,121.96,121.93,0.05867041]
[1766575613854,3.43316999,121.96,121.93,0.05867041]
[1766575615567,0.05316999,121.96,121.93,3.33867041]
[1766575616371,100.18,122.0,121.93,3.33867041]
[1766575616666,100.18,122.0,121.94,3.28]
[1766575616862,3.38,122.0,121.94,3.28]
[1766575617269,0.05303374,121.98,121.96,0.05775918]
[1766575620570,3.38,122.0,121.96,10.72155918]
[1766575621575,0.05901539,121.99,121.96,10.72155918]
[1766575636798,12.6856144,122.04,121.97,3.27]
[1766575636996,100.13,122.05,121.98,3.27]
[1766575637197,3.33,122.04,121.98,3.27]
[1766575638103,0.05681998,122.02,122.0,0.05876585]
[1766575652312,3.57681998,122.02,121.96,3.48]
[1766575652613,3.57681998,122.02,121.96,7.3834]
[1766575652814,3.52,122.01,121.96,7.3834]
[1766575653516,3.52,122.01,121.97,0.06192008]
[1766575658013,4.78502447,122.01,121.97,0.06192008]
[1766575675934,4.78502447,122.01,121.97,7.44512008]
[1766575677735,0.05681998,122.02,121.98,7.3825]
[1766575678726,3.13681998,122.02,121.98,7.3825]
[1766575684740,0.05681998,122.02,121.98,10.9225]
[1766575688049,0.05681998,122.02,121.98,3.54]
[1766575699254,0.05681998,122.02,121.98,10.9226]
[1766575710971,0.05681998,122.02,121.98,3.54]
[1766575713285,1.26502447,122.01,121.98,3.54]
[1766575714374,1.26502447,122.01,121.97,0.06192008]
[1766575715369,12.21592447,122.01,121.97,0.06192008]
[1766575715771,4.83502447,121.99,121.94,3.47]
[1766575716075,101.61502447,121.99,121.94,3.47]
[1766575716976,0.06099581,121.98,121.95,0.06033752]
[1766575721666,96.86099581,121.98,121.95,0.06033752]
[1766575722081,0.06099581,121.98,121.95,0.06033752]
[1766575722379,0.06099581,121.98,121.95,3.51033752]
[1766575723676,0.06099581,121.98,121.95,10.89463752]
[1766575724180,0.00099581,121.98,121.96,10.8338]
[1766575741696,0.00099581,121.98,121.95,0.06033752]
[1766575742090,0.00099581,121.98,121.95,3.40033752]
[1766575742894,0.00099581,121.98,121.95,10.78473752]
[1766575743091,0.00099581,121.98,121.96,3.34]
[1766575745798,0.00099581,121.98,121.95,7.44473752]
[1766575746288,0.00099581,121.98,121.95,10.78473752]
[1766575746794,0.00099581,121.98,121.96,3.34]
[1766575752900,0.00099581,121.98,121.95,7.44473752]
[1766575753499,0.00099581,121.98,121.95,10.78473752]
[1766575753999,0.00099581,121.98,121.95,7.44473752]
[1766575754197,0.00099581,121.98,121.95,0.06033752]
[1766575758205,0.00099581,121.98,121.95,3.40033752]
[1766575770514,0.00099581,121.98,121.95,0.06033752]
[1766575779234,3.31099581,121.98,121.95,0.06033752]
[1766575781928,4.57663318,121.98,121.95,0.06033752]
[1766575782731,0.00099581,121.98,121.95,0.06033752]
[1766575783036,0.00099581,121.98,121.96,3.23]
[1766575784731,0.00099581,121.98,121.96,10.6138]
[1766575798231,0.00099581,121.98,121.96,3.23]
[1766575800139,0.00099581,121.98,121.95,7.44473752]
[1766575800338,0.00099581,121.98,121.95,0.06033752]
[1766575806253,3.55099581,121.98,121.95,0.06033752]
[1766575815664,0.00099581,121.98,121.95,3.48033752]
[1766575820162,3.55,122.0,121.95,3.48033752]
[1766575820357,100.35,122.0,121.95,3.48033752]
[1766575821274,0.05371054,121.99,121.95,3.48033752]
[1766575821464,0.05371054,121.99,121.96,7.3838]
[1766575828386,0.00371054,121.99,121.97,3.42]
[1766575830286,0.00371054,121.99,121.97,10.8032]
[1766575838990,0.00371054,121.99,121.96,7.3838]
[1766575839197,0.00371054,121.99,121.96,10.6038]
[1766575841606,0.00371054,121.99,121.97,3.22]
[1766575847001,0.00371054,121.99,121.95,10.66473752]
[1766575847300,0.00371054,121.99,121.95,3.28033752]
[1766575848604,0.00371054,121.99,121.96,7.3838]
[1766575865208,0.00371054,121.99,121.96,11.0438]
[1766575869208,3.62371054,121.99,121.94,3.66]
[1766575869411,3.62,121.98,121.92,3.66]
[1766575870206,3.62,121.98,121.94,0.05929445]
[1766575870397,0.0590882,121.96,121.92,11.0463]
[1766575870603,3.6790882,121.96,121.92,3.66]
[1766575871105,0.0590882,121.96,121.92,3.66]
[1766575871609,0.0590882,121.96,121.93,3.71186497]
[1766575872714,0.0590882,121.96,121.93,11.09746497]
[1766575879515,0.0590882,121.96,121.93,3.71186497]
[1766575893620,3.32,122.02,121.94,3.52]
[1766575893826,3.32,122.04,121.98,3.52]
[1766575894029,96.82,122.03,121.98,3.52]
[1766575894519,0.05888731,122.02,121.99,0.05311432]
[1766575894713,0.05888731,122.02,121.99,3.57311432]
[1766575894918,96.82,122.05,121.99,3.57311432]
[1766575895121,3.32,122.06,121.99,3.52]
[1766575895313,100.14,122.06,121.99,3.52]
[1766575895815,100.14,122.06,121.98,114.8395]
[1766575895816,0.05660028,122.04,122.02,3.39]
[1766575896616,3.25,122.08,122.02,3.39]
[1766575896923,96.82,122.07,122.02,3.39]
[1766575897320,3.25,122.1,122.03,3.39]
[1766575897625,0.05650283,122.08,122.05,0.0607992]
[1766575901326,3.30650283,122.08,122.02,3.39]
[1766575901920,4.57020103,122.08,122.02,3.39]
[1766575902320,4.57020103,122.08,122.04,0.05470851]
[1766575903923,0.05650283,122.08,122.04,3.44470851]
[1766575904122,96.83650283,122.08,122.04,3.44470851]
[1766575906022,96.78,122.09,122.04,3.44470851]
[1766575907120,0.05692917,122.08,122.04,3.44470851]
[1766575912232,0.05692917,122.08,122.04,10.82360851]
[1766575912534,98.0236982,122.1,122.05,3.39]
[1766575912731,96.76,122.1,122.05,3.39]
[1766575913731,0.05537128,122.09,122.05,10.768]
[1766575914328,0.05537128,122.09,122.06,3.39]
[1766575915134,96.63477409,122.1,122.06,7.3777]
[1766575915328,1.2636982,122.13,122.07,3.39]
[1766575916237,1.2636982,122.13,122.09,0.0613551]
[1766575917237,0.05657899,122.12,122.09,0.0613551]
[1766575918230,3.25,122.14,122.09,0.0613551]
[1766575918627,98.0036982,122.15,122.09,0.0613551]
[1766575919225,0.06074826,122.13,122.09,0.0613551]
[1766575919426,0.00074826,122.13,122.09,0.0613551]
[1766575920531,0.00074826,122.13,122.11,7.3744]
[1766575922541,0.00074826,122.13,122.09,7.4368551]
[1766575923542,0.00074826,122.13,122.09,0.0613551]
[1766575926240,4.73444646,122.13,122.09,0.0613551]
[1766575926542,3.47,122.12,122.09,0.0613551]
[1766575927234,3.47,122.12,122.09,0.0013551]
[1766575928040,0.00074826,122.13,122.09,0.0013551]
[1766575930344,0.00074826,122.13,122.09,7.3772551]
[1766575931043,0.00074826,122.13,122.09,0.0013551]
[1766575932646,0.00074826,122.13,122.11,7.3746]
[1766575964277,0.00074826,122.13,122.09,7.3767551]
[1766575964479,0.00074826,122.13,122.09,0.0013551]
[1766575965679,3.44074826,122.13,122.09,0.0013551]
[1766575971391,3.44,122.12,122.09,0.0013551]
[1766575971587,3.44,122.12,122.04,7.3785]
[1766575971788,3.44,122.11,122.03,96.54]
[1766575971996,3.44,122.11,121.98,229.676]
[1766575971997,3.44,122.08,121.98,229.676]
[1766575972291,3.44,122.08,121.97,96.56]
[1766575972482,3.44,122.06,121.97,96.56]
[1766575972683,0.0021012,122.03,122.0,0.06005232]
[1766575978296,0.0021012,122.03,122.0,7.44135232]
[1766575981499,0.0021012,122.03,122.01,7.3806]
[1766575988405,0.0021012,122.03,122.0,0.06005232]
[1766575991207,0.0021012,122.03,122.0,7.44135232]
[1766576008519,3.6621012,122.03,122.0,0.06005232]
[1766576011726,3.6621012,122.03,122.0,5.232e-05]
[1766576012821,3.6621012,122.03,121.96,7.3834]
[1766576013025,3.66,122.03,121.96,7.3834]
[1766576013416,3.66,122.03,121.97,7.3831]
[1766576013822,0.06253657,122.01,121.99,0.05821512]
[1766576017516,3.76253657,122.01,121.99,0.05821512]
[1766576019333,0.06253657,122.01,121.99,0.05821512]
[1766576020540,3.7,122.03,121.99,7.44021512]
[1766576021535,0.0585558,122.02,121.99,7.44021512]
[1766576022731,3.7,122.09,122.01,114.8096]
[1766576023627,0.05880058,122.06,122.04,0.05450739]
[1766576044972,3.66880058,122.06,122.02,7.3798]
[1766576045968,3.66880058,122.06,122.03,0.05889222]
[1766576046861,0.05880058,122.06,122.03,7.43819222]
[1766576048472,3.66880058,122.06,122.03,0.05889222]
[1766576069494,96.76,122.09,122.03,0.05889222]
[1766576070295,0.06032833,122.07,122.03,0.05889222]
[1766576070596,0.06032833,122.07,122.04,7.379]
[1766576071391,0.06032833,122.07,122.05,7.3782]
[1766576077906,3.83032833,122.07,122.03,7.43789222]
[1766576078310,3.83032833,122.07,122.03,0.05889222]
[1766576087712,3.77,122.06,122.0,1.92]
[1766576087920,3.77,122.04,122.0,1.92]
[1766576088609,0.06141454,122.03,122.01,0.0521999]
[1766576089311,3.83141454,122.03,122.01,0.0021999]
[1766576089515,3.83141454,122.03,121.96,1.97]
[1766576089707,3.77,122.03,121.96,1.97]
[1766576090512,0.06209947,122.01,121.98,0.05921788]
[1766576092905,3.83209947,122.01,121.98,0.05921788]
[1766576094905,3.83209947,122.01,121.97,7.3832]
[1766576095316,3.83209947,122.01,121.95,104.004]
[1766576096017,3.83209947,122.01,121.97,0.05955461]
[1766576097608,3.83209947,122.01,121.97,7.44265461]
[1766576106119,3.83209947,122.01,121.97,0.05955461]
[1766576106320,3.83209947,122.01,121.94,2.14]
[1766576106528,3.83,122.0,121.94,2.14]
[1766576106720,3.83,122.0,121.92,96.66]
[1766576106921,3.83,121.99,121.92,98.87]
[1766576107328,0.05187511,121.97,121.94,0.05625374]
[1766576111727,3.83,122.0,121.94,0.05625374]
[1766576112033,7.3807,122.02,121.92,211.5554]
[1766576112034,3.83,122.02,121.95,2.23]
[1766576112835,0.06040999,122.0,121.97,0.0579877]
[1766576113637,0.06040999,122.0,121.97,7.4411877]
[1766576124854,3.83,122.02,121.97,9.7411877]
[1766576125150,3.83,122.02,121.98,7.3825]
[1766576125852,0.05687533,122.01,121.98,7.3825]
[1766576128347,3.83,122.04,121.99,2.32]
[1766576128654,3.83,122.06,122.0,2.27]
[1766576129040,3.83,122.06,122.02,7.3802]
[1766576129445,3.83,122.08,122.03,2.33220503]
[1766576129847,3.83,122.08,122.03,9.71180503]
[1766576130451,0.06032634,122.07,122.03,9.71180503]
[1766576132555,3.94032634,122.07,122.03,0.06220503]
[1766576134248,0.06032634,122.07,122.03,2.35220503]
[1766576135860,0.00032634,122.07,122.04,2.25]
[1766576143161,0.00032634,122.07,122.03,0.06220503]
[1766576143556,4.07032634,122.07,122.03,0.06220503]
[1766576145364,11.44762634,122.07,122.0,2.3]
[1766576146260,11.44762634,122.07,122.02,0.06282224]
[1766576147670,4.07,122.06,122.02,0.06282224]
[1766576156673,4.07,122.06,122.02,0.00282224]
[1766576157478,5.33408076,122.07,122.02,2.42282224]
[1766576163577,5.33408076,122.07,122.02,9.80302224]
[1766576163882,4.44,122.06,122.02,9.80302224]
[1766576169795,4.44,122.06,122.02,7.38302224]
[1766576173794,4.44,122.06,122.02,10.29302224]
[1766576182705,0.00032634,122.07,122.02,10.29302224]
[1766576182706,0.00032634,122.07,122.03,2.93]
[1766576183598,0.00032634,122.07,122.05,7.3783]
[1766576183797,0.00032634,122.07,122.05,7.44043211]
[1766576195917,0.00032634,122.07,122.05,0.06213211]
[1766576223538,0.00032634,122.07,122.05,10.01023211]
[1766576227643,0.00032634,122.07,122.06,2.57]
[1766576227848,3.97,122.13,122.08,7.3765]
[1766576228152,3.97,122.13,122.08,9.9465]
[1766576228642,3.97,122.13,122.09,7.376]
[1766576228844,0.05661938,122.12,122.1,0.05856689]
[1766576229540,0.05661938,122.12,122.08,2.57]
[1766576229541,4.02661938,122.12,122.08,2.57]
[1766576230047,4.02661938,122.12,122.09,7.376]
[1766576230546,4.02661938,122.12,122.09,7.43336843]
[1766576232149,0.05661938,122.12,122.09,7.43336843]
[1766576232945,3.97,122.14,122.1,7.3753]
[1766576233150,3.97,122.14,122.1,2.64]
[1766576233937,0.05984274,122.13,122.1,2.64]
[1766576234553,0.05984274,122.13,122.11,7.3747]
[1766576237253,0.05984274,122.13,122.1,2.64]
[1766576238654,0.05984274,122.13,122.1,10.0153]
[1766576239155,0.05984274,122.13,122.1,2.64]
[1766576249774,0.05984274,122.13,122.1,10.0154]
[1766576252775,0.05984274,122.13,122.11,7.3748]
[1766576252971,9.34435887,122.19,122.1,2.64]
[1766576253169,106.04435887,122.19,122.1,2.64]
[1766576253964,0.05395818,122.16,122.13,0.06098854]
[1766576271983,0.00395818,122.16,122.14,4.33]
[1766576292693,0.00395818,122.16,122.13,7.43448854]
[1766576292894,0.00395818,122.16,122.13,11.60448854]
[1766576301698,0.00395818,122.16,122.13,0.06098854]
[1766576301904,3.88,122.14,122.09,4.17]
[1766576302105,1.26169225,122.13,122.09,4.17]
[1766576302904,0.06096381,122.12,122.1,0.05244722]
[1766576303297,0.00096381,122.12,122.1,4.22244722]
[1766576310413,0.00096381,122.12,122.09,7.376]
[1766576310414,3.88096381,122.12,122.08,4.17]
[1766576310604,5.14265606,122.12,122.08,4.17]
[1766576311407,5.14265606,122.12,122.09,0.06259472]
[1766576314314,5.14265606,122.12,122.05,114.7696]
[1766576314805,3.67,122.11,122.04,114.7771]